bitfinex/quotes_BTCUSD_20240629
["timestamp","ask_amount","ask_price","bid_price","bid_amount"]
[1719619200843,0.98222566,60547.0,60546.0,0.26014204]
[1719619201257,0.98022566,60547.0,60546.0,0.26014204]
[1719619201673,0.97522566,60547.0,60546.0,0.25914204]
[1719619201857,0.882701,60547.0,60546.0,0.25914204]
[1719619202065,0.982301,60547.0,60546.0,0.26014204]
[1719619202291,0.975301,60547.0,60546.0,0.25914204]
[1719619202495,0.975301,60547.0,60546.0,0.25220981]
[1719619202692,0.979301,60547.0,60546.0,0.25220981]
[1719619202922,0.585667,60547.0,60546.0,0.25220981]
[1719619203119,0.578202,60547.0,60546.0,0.27070981]
[1719619203330,0.585202,60547.0,60546.0,0.27170981]
[1719619203729,0.11184,60547.0,60546.0,0.40121937]
[1719619203927,0.01184,60547.0,60546.0,0.40121937]
[1719619204581,0.00984,60547.0,60546.0,0.38271937]
[1719619204803,0.00984,60547.0,60546.0,0.57355835]
[1719619204959,0.00103317,60562.0,60561.0,0.0185]
[1719619205122,0.09563317,60562.0,60558.0,0.0962]
[1719619205331,0.0946,60559.0,60558.0,0.0962]
[1719619205534,0.0946,60559.0,60558.0,0.2333]
[1719619206173,0.0946,60559.0,60558.0,0.2148]
[1719619206453,1.071458,60559.0,60554.0,0.0962]
[1719619206588,0.0946,60555.0,60554.0,0.0962]
[1719619206815,2.083764,60555.0,60554.0,0.0962]
[1719619207108,2.083764,60555.0,60552.0,0.2148]
[1719619207109,2.182862,60555.0,60552.0,0.2148]
[1719619207297,1.895028,60554.0,60552.0,0.2148]
[1719619207714,0.1,60554.0,60552.0,0.2148]
[1719619207934,0.72817,60553.0,60552.0,0.2333]
[1719619208178,0.56277,60553.0,60552.0,0.2333]
[1719619208533,0.56277,60553.0,60552.0,0.2148]
[1719619208756,0.56277,60553.0,60552.0,0.2158]
[1719619209122,0.56277,60553.0,60552.0,0.2148]
[1719619209612,0.56277,60553.0,60552.0,0.2168]
[1719619209991,0.56277,60553.0,60552.0,0.2353]
[1719619210410,0.56277,60553.0,60552.0,0.2363]
[1719619210735,0.56277,60553.0,60552.0,0.2353]
[1719619211131,0.56277,60553.0,60552.0,0.2363]
[1719619211336,0.56277,60553.0,60552.0,0.2343]
[1719619211671,0.56277,60553.0,60552.0,0.2333]
[1719619212034,0.56477,60553.0,60552.0,0.2333]
[1719619212235,0.56477,60553.0,60552.0,0.2148]
[1719619212509,0.56277,60553.0,60552.0,0.2148]
[1719619212870,0.56477,60553.0,60552.0,0.2148]
[1719619214305,0.56277,60553.0,60552.0,0.2148]
[1719619214725,0.56477,60553.0,60552.0,0.2148]
[1719619215958,0.56477,60553.0,60548.0,0.2148]
[1719619216160,0.0946,60549.0,60548.0,0.2148]
[1719619217348,0.0946,60549.0,60548.0,0.36280956]
[1719619217527,0.0946,60549.0,60548.0,0.34430956]
[1719619217663,0.0946,60549.0,60548.0,0.35190259]
[1719619217869,0.0956,60549.0,60548.0,0.35190259]
[1719619218074,0.0956,60549.0,60548.0,0.37040259]
[1719619218292,0.0956,60549.0,60548.0,0.35190259]
[1719619218526,0.0946,60549.0,60548.0,0.35190259]
[1719619218934,0.0956,60549.0,60548.0,0.35190259]
[1719619219925,0.0956,60549.0,60548.0,0.3357279]
[1719619220847,0.0946,60549.0,60548.0,0.3357279]
[1719619221249,0.0966,60549.0,60548.0,0.3357279]
[1719619221435,0.002,60549.0,60548.0,0.3357279]
[1719619221639,0.0946,60549.0,60548.0,0.3357279]
[1719619222050,0.0956,60549.0,60548.0,0.3542279]
[1719619222266,0.00141984,60564.0,60554.0,0.0185]
[1719619222478,0.00141984,60564.0,60554.0,0.1042]
[1719619222479,0.0946,60555.0,60554.0,0.1042]
[1719619222857,1.260226,60555.0,60554.0,0.1042]
[1719619223067,1.260044,60555.0,60554.0,0.1042]
[1719619223725,0.207397,60555.0,60554.0,0.2125]
[1719619223926,0.0946,60555.0,60554.0,0.2125]
[1719619224327,0.03040614,60564.0,60558.0,0.1083]
[1719619224489,0.467,60566.0,60558.0,0.1083]
[1719619224490,0.0946,60559.0,60558.0,0.1083]
[1719619224684,1.699289,60559.0,60558.0,0.1083]
[1719619224884,1.798754,60559.0,60558.0,0.1083]
[1719619225113,0.672341,60559.0,60558.0,0.1268]
[1719619225339,0.1946,60559.0,60558.0,0.35734122]
[1719619225721,0.1946,60559.0,60558.0,0.36693754]
[1719619225912,0.0946,60559.0,60558.0,0.36693754]
[1719619226052,0.1946,60559.0,60558.0,0.36693754]
[1719619226889,0.1946,60559.0,60558.0,0.36493754]
[1719619227337,0.1956,60559.0,60558.0,0.36693754]
[1719619227571,0.1956,60559.0,60558.0,0.36593754]
[1719619227920,0.1946,60559.0,60558.0,0.36593754]
[1719619228334,0.101,60559.0,60558.0,0.37593754]
[1719619228542,0.1956,60559.0,60558.0,0.37593754]
[1719619228763,0.0956,60559.0,60558.0,0.37593754]
[1719619229391,0.0956,60559.0,60558.0,0.37693754]
[1719619230642,0.00084,60559.0,60558.0,0.37493754]
[1719619231049,0.09644,60559.0,60558.0,0.37493754]
[1719619231224,0.00184,60559.0,60558.0,0.37493754]
[1719619231427,0.09544,60559.0,60558.0,0.53727652]
[1719619231991,0.09544,60559.0,60558.0,0.54427652]
[1719619232192,0.09544,60559.0,60558.0,0.55127652]
[1719619232476,0.09544,60559.0,60558.0,0.54676433]
[1719619233488,0.00084,60559.0,60558.0,0.54676433]
[1719619233633,0.09544,60559.0,60558.0,0.54676433]
[1719619235900,0.09544,60559.0,60558.0,0.53676433]
[1719619236662,0.00084,60559.0,60558.0,0.54676433]
[1719619237113,0.09544,60559.0,60558.0,0.54676433]
[1719619237415,0.00084,60559.0,60558.0,0.54676433]
[1719619237610,0.09544,60559.0,60558.0,0.54676433]
[1719619237874,0.00084,60559.0,60558.0,0.54676433]
[1719619238078,0.09544,60559.0,60558.0,0.54676433]
[1719619238540,0.00084,60559.0,60558.0,0.54676433]
[1719619238755,0.09544,60559.0,60558.0,0.54676433]
[1719619241157,0.00084,60559.0,60558.0,0.54676433]
[1719619241359,0.09544,60559.0,60558.0,0.54676433]
[1719619242211,0.00084,60559.0,60558.0,0.72116433]
[1719619242412,0.09544,60559.0,60558.0,0.72116433]
[1719619242887,0.09544,60559.0,60558.0,0.80246779]
[1719619243310,0.00084,60559.0,60558.0,0.80246779]
[1719619243509,0.09544,60559.0,60558.0,0.80246779]
[1719619243919,0.09544,60559.0,60558.0,1.00246779]
[1719619244523,0.09544,60559.0,60558.0,0.80246779]
[1719619246490,0.00084,60559.0,60558.0,0.80246779]
[1719619246790,0.09544,60559.0,60558.0,0.80246779]
[1719619250319,0.09544,60559.0,60558.0,0.61806779]
[1719619250519,0.09544,60559.0,60558.0,0.53676433]
[1719619251209,0.4873,60559.0,60558.0,0.16643754]
[1719619251401,0.4873,60559.0,60558.0,0.1848592]
[1719619251402,1.054661,60559.0,60558.0,0.1848592]
[1719619251555,2.240346,60559.0,60558.0,0.1663592]
[1719619251765,1.810631,60559.0,60558.0,0.1663592]
[1719619251992,1.694021,60559.0,60558.0,0.014]
[1719619252165,1.720721,60559.0,60558.0,0.02151754]
[1719619252550,1.72171509,60559.0,60552.0,0.0185]
[1719619252725,0.0946,60553.0,60552.0,0.0185]
[1719619252952,1.656328,60553.0,60552.0,0.0185]
[1719619253126,1.735677,60553.0,60552.0,0.0185]
[1719619253456,0.483617,60553.0,60552.0,0.16326288]
[1719619253790,0.483617,60553.0,60552.0,0.17005014]
[1719619254613,0.483617,60553.0,60552.0,0.17205014]
[1719619254815,0.389017,60553.0,60552.0,0.17205014]
[1719619255019,0.389017,60553.0,60552.0,0.17005014]
[1719619255189,0.483617,60553.0,60552.0,0.17005014]
[1719619255389,0.483617,60553.0,60552.0,0.17305014]
[1719619256563,0.483617,60553.0,60552.0,0.17605014]
[1719619258993,0.1946,60553.0,60552.0,0.17605014]
[1719619259194,0.0946,60553.0,60552.0,0.17605014]
[1719619259412,0.604584,60553.0,60552.0,0.17605014]
[1719619259606,0.704584,60553.0,60552.0,0.17605014]
[1719619259845,0.629775,60553.0,60552.0,0.17605014]
[1719619260254,0.629775,60553.0,60552.0,0.18605014]
[1719619260404,0.1,60553.0,60552.0,0.44258912]
[1719619260604,0.1946,60553.0,60552.0,0.43258912]
[1719619260804,0.568059,60553.0,60552.0,0.43258912]
[1719619261008,1.338349,60553.0,60552.0,0.43258912]
[1719619261206,1.263536,60553.0,60552.0,0.43258912]
[1719619262504,1.263536,60553.0,60552.0,0.33838912]
[1719619265136,1.263536,60553.0,60552.0,0.33833554]
[1719619265740,0.358463,60553.0,60552.0,0.54923554]
[1719619265942,0.342872,60553.0,60552.0,0.53073554]
[1719619266503,0.342872,60553.0,60552.0,0.55923554]
[1719619267563,0.1946,60553.0,60552.0,0.55923554]
[1719619267775,0.0946,60553.0,60552.0,0.55923554]
[1719619268895,0.247064,60553.0,60552.0,0.55923554]
[1719619269104,0.1,60553.0,60552.0,0.55923554]
[1719619269309,0.1946,60553.0,60552.0,0.55923554]
[1719619270128,0.0946,60553.0,60552.0,0.54923554]
[1719619271231,0.10282,60553.0,60552.0,0.54923554]
[1719619271435,0.20282,60553.0,60552.0,0.54923554]
[1719619275492,0.4141664,60571.0,60552.0,0.54923554]
[1719619275702,2.268409,60570.0,60561.0,0.0185]
[1719619275902,0.0946,60562.0,60561.0,0.0185]
[1719619276653,0.0946,60562.0,60554.0,0.08130346]
[1719619276654,0.0946,60562.0,60560.0,0.0185]
[1719619276800,2.168409,60561.0,60560.0,0.1447093]
[1719619277775,2.100585,60561.0,60560.0,0.1447093]
[1719619277969,2.200585,60561.0,60560.0,0.1457093]
[1719619278199,2.200585,60561.0,60560.0,0.1447093]
[1719619278575,1.844332,60561.0,60560.0,0.1457093]
[1719619278783,1.844332,60561.0,60560.0,0.1447093]
[1719619279586,1.851332,60561.0,60560.0,0.1457093]
[1719619279810,2.279409,60561.0,60560.0,0.1457093]
[1719619280295,2.281409,60561.0,60560.0,0.1457093]
[1719619280719,2.274409,60561.0,60560.0,0.1447093]
[1719619280923,2.268409,60561.0,60560.0,0.1447093]
[1719619281129,2.270409,60561.0,60560.0,0.1447093]
[1719619281351,2.272409,60561.0,60560.0,0.1447093]
[1719619281513,2.2518,60561.0,60560.0,0.1447093]
[1719619281933,2.2528,60561.0,60560.0,0.1447093]
[1719619282609,2.2508,60561.0,60560.0,0.1447093]
[1719619282948,2.2508,60561.0,60558.0,0.1447093]
[1719619282949,2.2518,60561.0,60558.0,0.1447093]
[1719619283289,0.0946,60559.0,60558.0,0.1447093]
[1719619283493,2.263009,60559.0,60558.0,0.1447093]
[1719619283721,2.363009,60559.0,60558.0,0.1447093]
[1719619283913,2.313009,60559.0,60558.0,0.1447093]
[1719619284619,2.313009,60559.0,60558.0,0.1497093]
[1719619285032,2.313009,60559.0,60558.0,0.1487093]
[1719619285833,2.280269,60559.0,60558.0,0.1487093]
[1719619286217,2.280269,60559.0,60558.0,0.1527093]
[1719619287461,2.090715,60559.0,60558.0,0.1527093]
[1719619287862,1.860108,60559.0,60558.0,0.1527093]
[1719619288657,1.860108,60559.0,60558.0,0.1712093]
[1719619289659,1.860108,60559.0,60558.0,0.1527093]
[1719619290603,1.860108,60559.0,60558.0,0.1712093]
[1719619292093,1.860108,60559.0,60558.0,0.1527093]
[1719619295809,1.860108,60559.0,60558.0,0.1721333]
[1719619295983,1.860108,60559.0,60558.0,0.008924]
[1719619296396,0.1446,60559.0,60558.0,0.008924]
[1719619296597,0.0446,60559.0,60558.0,0.008924]
[1719619296806,2.313009,60559.0,60558.0,0.008924]
[1719619297013,2.313009,60559.0,60558.0,0.00886659]
[1719619297229,2.313009,60559.0,60558.0,0.00486659]
[1719619297438,2.317009,60559.0,60558.0,0.001924]
[1719619297842,2.320009,60559.0,60558.0,0.001924]
[1719619299642,2.317009,60559.0,60558.0,0.001924]
[1719619299869,2.316009,60559.0,60558.0,0.000924]
[1719619300094,2.320009,60559.0,60558.0,0.000924]
[1719619306375,2.320009,60559.0,60550.0,0.084]
[1719619306376,2.48234271,60559.0,60550.0,0.1094]
[1719619306553,0.0946,60551.0,60547.0,0.2735333]
[1719619306761,0.0946,60548.0,60547.0,0.2735333]
[1719619306960,1.244388,60548.0,60547.0,0.2735333]
[1719619307156,1.344448,60548.0,60547.0,0.2550333]
[1719619308351,1.344448,60548.0,60547.0,0.2620333]
[1719619309552,1.344448,60548.0,60547.0,0.2550333]
[1719619310075,1.345448,60548.0,60547.0,0.2760333]
[1719619310794,1.345448,60548.0,60547.0,0.2650333]
[1719619310978,1.344448,60548.0,60547.0,0.2550333]
[1719619311179,1.345448,60548.0,60547.0,0.2895333]
[1719619312517,1.345448,60548.0,60547.0,0.2710333]
[1719619312948,1.19138253,60548.0,60547.0,0.2710333]
[1719619313252,1.28598253,60548.0,60547.0,0.2710333]
[1719619315491,1.28598253,60548.0,60547.0,0.2895333]
[1719619315850,1.28598253,60548.0,60547.0,0.27784106]
[1719619316094,1.28598253,60548.0,60547.0,0.29634106]
[1719619316520,1.19138253,60548.0,60547.0,0.29634106]
[1719619316698,1.28598253,60548.0,60547.0,0.29634106]
[1719619316933,1.28598253,60548.0,60547.0,0.2895333]
[1719619317308,1.184073,60548.0,60547.0,0.29634106]
[1719619317722,1.113856,60548.0,60547.0,0.29634106]
[1719619319457,1.086319,60548.0,60547.0,0.29634106]
[1719619320170,1.127688,60548.0,60547.0,0.29634106]
[1719619320371,0.101,60548.0,60547.0,0.54268004]
[1719619320575,0.0956,60548.0,60547.0,0.54268004]
[1719619322357,0.24382,60548.0,60547.0,0.53587228]
[1719619322667,0.34382,60548.0,60547.0,0.53587228]
[1719619322865,0.34382,60548.0,60547.0,0.54268285]
[1719619323787,0.101,60548.0,60547.0,0.55268285]
[1719619323980,0.1956,60548.0,60547.0,0.55268285]
[1719619325168,0.0956,60548.0,60547.0,0.55268285]
[1719619325946,0.0956,60548.0,60547.0,0.52418285]
[1719619326171,0.0956,60548.0,60547.0,0.56085059]
[1719619326370,0.0956,60548.0,60547.0,0.52418285]
[1719619326570,0.0956,60548.0,60547.0,0.54268285]
[1719619326939,0.0956,60548.0,60547.0,0.55268285]
[1719619327770,0.0956,60548.0,60547.0,0.54268285]
[1719619328036,0.0956,60548.0,60547.0,0.55268285]
[1719619329969,0.09644,60548.0,60547.0,0.54268285]
[1719619331931,0.23204,60548.0,60547.0,0.54268285]
[1719619332131,1.210953,60548.0,60547.0,0.54268285]
[1719619332718,1.213953,60548.0,60546.0,0.05]
[1719619332918,2.208944,60547.0,60546.0,0.05]
[1719619333326,2.208944,60547.0,60540.0,0.05]
[1719619333327,2.303544,60547.0,60540.0,0.05]
[1719619333524,0.0946,60541.0,60540.0,0.05]
[1719619333731,0.0037,60540.0,60520.0,0.000924]
[1719619333933,0.0037,60540.0,60526.0,0.0185]
[1719619333934,0.1037,60540.0,60526.0,0.0185]
[1719619334144,2.108944,60539.0,60527.0,0.0185]
[1719619334448,2.108944,60539.0,60521.0,0.16233898]
[1719619334449,0.1,60538.0,60528.0,0.0185]
[1719619334624,0.0946,60529.0,60521.0,0.16233898]
[1719619334834,0.1,60536.0,60528.0,0.0185]
[1719619335092,0.0946,60529.0,60527.0,0.01]
[1719619335307,0.0946,60529.0,60521.0,0.16233898]
[1719619335308,1.64215,60528.0,60521.0,0.18083898]
[1719619335472,1.905952,60527.0,60523.0,0.0185]
[1719619335685,0.0946,60524.0,60523.0,0.18083898]
[1719619335893,1.36674,60524.0,60523.0,0.18083898]
[1719619336086,1.46674,60524.0,60523.0,0.18083898]
[1719619336468,1.627114,60524.0,60520.0,0.000924]
[1719619336676,0.0946,60521.0,60520.0,0.000924]
[1719619337063,2.303544,60521.0,60520.0,0.000924]
[1719619337427,2.303544,60521.0,60520.0,0.009144]
[1719619337589,2.208944,60521.0,60520.0,0.009144]
[1719619337796,2.303544,60521.0,60520.0,0.009144]
[1719619338229,2.304544,60521.0,60520.0,0.015144]
[1719619339556,2.305544,60521.0,60520.0,0.021144]
[1719619339958,2.47157771,60521.0,60520.0,0.021144]
[1719619340167,0.003,60519.0,60513.0,0.000924]
[1719619340361,0.0946,60514.0,60513.0,0.000924]
[1719619340640,2.203544,60514.0,60513.0,0.000924]
[1719619340877,2.303544,60514.0,60513.0,0.000924]
[1719619341283,1.647984,60514.0,60513.0,0.000924]
[1719619341937,0.265015,60514.0,60513.0,0.18176298]
[1719619342116,0.1946,60514.0,60513.0,0.19176298]
[1719619342316,0.0946,60514.0,60513.0,0.19176298]
[1719619342740,0.1036,60514.0,60513.0,0.19276298]
[1719619342949,0.2036,60514.0,60513.0,0.19276298]
[1719619343706,0.2036,60514.0,60513.0,0.18276298]
[1719619343924,0.2036,60514.0,60513.0,0.001924]
[1719619344098,0.32102,60514.0,60513.0,0.019424]
[1719619344335,0.32202,60514.0,60513.0,0.019424]
[1719619345585,0.32302,60514.0,60513.0,0.000924]
[1719619349015,0.32302,60514.0,60513.0,0.019424]
[1719619351415,0.22842,60514.0,60513.0,0.000924]
[1719619351603,0.32302,60514.0,60513.0,0.019424]
[1719619351827,0.32302,60514.0,60513.0,0.125724]
[1719619352050,0.32302,60514.0,60513.0,0.215824]
[1719619353336,0.32302,60514.0,60513.0,0.21576819]
[1719619355845,0.1966,60514.0,60513.0,0.21576819]
[1719619356049,0.342036,60514.0,60513.0,0.21576819]
[1719619357262,0.342036,60514.0,60513.0,0.37810717]
[1719619359269,0.623681,60514.0,60513.0,0.37810717]
[1719619359444,0.449072,60514.0,60513.0,0.37810717]
[1719619359895,0.346872,60514.0,60513.0,0.37810717]
[1719619362540,0.1966,60514.0,60513.0,0.37810717]
[1719619362786,0.687065,60514.0,60513.0,0.37810717]
[1719619362932,0.102,60514.0,60513.0,0.35960717]
[1719619363135,0.002,60514.0,60513.0,0.38810717]
[1719619363334,0.00284,60514.0,60513.0,0.38810717]
[1719619364315,0.00284,60514.0,60513.0,0.56250717]
[1719619365250,0.00084,60514.0,60513.0,0.56250717]
[1719619365389,0.00084,60514.0,60513.0,0.76250717]
[1719619365582,0.00084,60514.0,60513.0,0.76550717]
[1719619366431,0.00084,60514.0,60513.0,0.76250717]
[1719619367569,0.00184,60514.0,60513.0,0.76750717]
[1719619367973,0.00284,60514.0,60513.0,0.77650717]
[1719619368586,0.00284,60514.0,60513.0,0.87110717]
[1719619368793,0.0946,60529.0,60528.0,0.1326]
[1719619369000,0.0946,60529.0,60528.0,0.37993898]
[1719619369197,0.03054098,60536.0,60528.0,0.37993898]
[1719619369198,0.467325,60534.0,60533.0,0.0185]
[1719619369444,0.0946,60534.0,60533.0,0.0185]
[1719619369858,0.51073,60534.0,60533.0,0.0185]
[1719619370064,0.0946,60534.0,60533.0,0.0185]
[1719619370475,0.13225104,60534.0,60533.0,0.0185]
[1719619370678,0.23225104,60534.0,60533.0,0.0185]
[1719619371087,0.13765104,60534.0,60533.0,0.0185]
[1719619371291,0.47358204,60534.0,60533.0,0.0185]
[1719619371483,0.58277004,60534.0,60533.0,0.0185]
[1719619371639,0.48817004,60534.0,60533.0,0.0185]
[1719619371802,0.48394504,60534.0,60533.0,0.2196]
[1719619372002,0.57854504,60534.0,60533.0,0.2196]
[1719619372827,0.56454504,60534.0,60533.0,0.2186]
[1719619372996,0.56454504,60534.0,60533.0,0.2196]
[1719619373200,0.57454504,60534.0,60533.0,0.2196]
[1719619373640,0.56054504,60534.0,60533.0,0.2186]
[1719619373970,0.57054504,60534.0,60533.0,0.2196]
[1719619374743,0.57054504,60534.0,60533.0,0.0205]
[1719619374940,1.49060204,60534.0,60533.0,0.0205]
[1719619375140,1.74358004,60534.0,60533.0,0.0205]
[1719619375465,1.69646704,60534.0,60533.0,0.0205]
[1719619377772,1.69646704,60534.0,60533.0,0.002]
[1719619377981,1.85880075,60534.0,60533.0,0.002]
[1719619378777,1.69646704,60534.0,60533.0,0.002]
[1719619380338,1.69646704,60534.0,60532.0,0.01670202]
[1719619380554,2.186047,60533.0,60532.0,0.01670202]
[1719619380723,2.144395,60533.0,60532.0,0.01670202]
[1719619381504,2.144395,60533.0,60532.0,0.01770202]
[1719619381668,2.153395,60533.0,60532.0,0.01870202]
[1719619382051,2.153395,60533.0,60532.0,0.01770202]
[1719619382448,0.90413,60533.0,60532.0,0.001]
[1719619382651,0.724607,60533.0,60532.0,0.01770202]
[1719619382854,0.428154,60533.0,60532.0,0.01770202]
[1719619383055,0.428154,60533.0,60532.0,0.12310202]
[1719619383286,0.333554,60533.0,60532.0,0.12310202]
[1719619383446,0.437154,60533.0,60532.0,0.12410202]
[1719619384579,0.437154,60533.0,60532.0,0.1074]
[1719619384825,0.437154,60533.0,60532.0,0.12410202]
[1719619386987,0.437154,60533.0,60532.0,0.01870202]
[1719619387198,0.437154,60533.0,60532.0,0.002]
[1719619387418,0.437154,60533.0,60532.0,0.01870202]
[1719619388020,0.342554,60533.0,60532.0,0.002]
[1719619388224,0.437154,60533.0,60532.0,0.002]
[1719619388428,0.437154,60533.0,60532.0,0.01870202]
[1719619392011,0.437154,60533.0,60532.0,0.002]
[1719619392588,0.437154,60533.0,60532.0,0.01870202]
[1719619393198,0.437154,60533.0,60532.0,0.002]
[1719619393442,0.437154,60533.0,60532.0,0.01870202]
[1719619394261,0.437154,60533.0,60532.0,0.002]
[1719619394609,0.437154,60533.0,60532.0,0.01870202]
[1719619394780,0.437154,60533.0,60532.0,0.002]
[1719619395910,0.437154,60533.0,60532.0,0.002924]
[1719619396115,0.437148,60533.0,60532.0,0.002924]
[1719619396440,0.437148,60533.0,60532.0,0.01962602]
[1719619396678,0.437148,60533.0,60532.0,0.002924]
[1719619397054,0.12218124,60533.0,60532.0,0.01962602]
[1719619397477,0.12218124,60533.0,60532.0,0.002924]
[1719619397652,0.12218124,60533.0,60532.0,0.01962602]
[1719619397878,0.12218124,60533.0,60532.0,0.002924]
[1719619398093,0.12218124,60533.0,60532.0,0.01962602]
[1719619398305,0.12218124,60533.0,60532.0,0.002924]
[1719619398505,0.12210265,60533.0,60532.0,0.002924]
[1719619399656,0.22210265,60533.0,60532.0,0.002924]
[1719619401198,1.352834,60533.0,60532.0,0.002924]
[1719619413011,1.258234,60533.0,60532.0,0.002924]
[1719619413225,1.352834,60533.0,60532.0,0.002924]
[1719619413376,1.352834,60533.0,60532.0,0.00286262]
[1719619415355,1.226081,60533.0,60532.0,0.00286262]
[1719619415465,1.320681,60533.0,60532.0,0.01956464]
[1719619415898,1.320681,60533.0,60532.0,0.00286262]
[1719619416101,1.320681,60533.0,60532.0,0.01956464]
[1719619416717,1.320681,60533.0,60532.0,0.00286262]
[1719619417157,1.320681,60533.0,60532.0,0.01956464]
[1719619417510,1.320681,60533.0,60532.0,0.00286262]
[1719619417918,1.081065,60533.0,60532.0,0.01956464]
[1719619418114,1.175665,60533.0,60532.0,0.00286262]
[1719619422056,2.079423,60533.0,60532.0,0.00286262]
[1719619423225,2.083323,60533.0,60532.0,0.00286262]
[1719619424322,2.08512098,60533.0,60532.0,0.00286262]
[1719619424528,2.08272098,60533.0,60532.0,0.00286262]
[1719619424739,2.08122098,60533.0,60532.0,0.00286262]
[1719619425165,2.079423,60533.0,60532.0,0.00286262]
[1719619427780,2.079423,60533.0,60532.0,0.00279513]
[1719619429439,2.08122098,60533.0,60532.0,0.00279513]
[1719619429694,2.079423,60533.0,60532.0,0.00279513]
[1719619432850,0.20444,60533.0,60532.0,0.00279513]
[1719619433113,2.106493,60533.0,60532.0,0.00279513]
[1719619434840,2.106493,60533.0,60532.0,0.00221813]
[1719619435069,2.106493,60533.0,60532.0,0.00048713]
[1719619437327,2.1064176,60533.0,60532.0,0.00048713]
[1719619441369,2.0826686,60533.0,60532.0,0.01718915]
[1719619441541,2.0826686,60533.0,60532.0,0.00048713]
[1719619444306,0.00084,60533.0,60532.0,0.39142813]
[1719619444710,0.00784,60533.0,60532.0,0.40442813]
[1719619445160,0.00184,60533.0,60532.0,0.40342813]
[1719619445593,0.00284,60533.0,60532.0,0.40942813]
[1719619447431,0.00284,60533.0,60532.0,0.38272611]
[1719619449064,0.00184,60533.0,60532.0,0.37672611]
[1719619449475,0.00284,60533.0,60532.0,0.38272611]
[1719619449689,0.00184,60533.0,60532.0,0.37072611]
[1719619450037,0.00284,60533.0,60532.0,0.38272611]
[1719619454623,0.00284,60533.0,60532.0,0.39942813]
[1719619454834,0.00284,60533.0,60532.0,0.40942813]
[1719619454835,0.09744,60533.0,60532.0,0.40942813]
[1719619455373,0.09744,60533.0,60532.0,0.39942813]
[1719619455564,0.09744,60533.0,60532.0,0.40942813]
[1719619458852,0.00284,60533.0,60532.0,0.40942813]
[1719619459059,0.09744,60533.0,60532.0,0.40942813]
[1719619459633,0.09744,60533.0,60532.0,0.39942813]
[1719619461245,0.00284,60533.0,60532.0,0.39942813]
[1719619461455,0.09744,60533.0,60532.0,0.39942813]
[1719619462750,0.09744,60533.0,60532.0,0.40942813]
[1719619463521,0.09744,60533.0,60532.0,0.38272611]
[1719619464808,0.09744,60533.0,60532.0,0.40942813]
[1719619467368,0.41609248,60550.0,60538.0,0.01670202]
[1719619467569,0.00179798,60548.0,60539.0,0.16233898]
[1719619467791,0.0946,60540.0,60539.0,0.16233898]
[1719619467992,1.169343,60540.0,60539.0,0.16233898]
[1719619469081,1.169343,60540.0,60539.0,0.179041]
[1719619469259,1.169343,60540.0,60539.0,0.16433898]
[1719619469457,1.269343,60540.0,60539.0,0.16433898]
[1719619469662,0.919343,60540.0,60539.0,0.16433898]
[1719619470482,0.919343,60540.0,60539.0,0.16533898]
[1719619470683,0.919343,60540.0,60539.0,0.182041]
[1719619472070,0.919343,60540.0,60539.0,0.16533898]
[1719619472637,0.919343,60540.0,60539.0,0.182041]
[1719619473048,0.824743,60540.0,60539.0,0.182041]
[1719619473272,0.919343,60540.0,60539.0,0.182041]
[1719619477447,0.897733,60540.0,60539.0,0.182041]
[1719619480231,0.671487,60540.0,60539.0,0.182041]
[1719619480877,0.1946,60540.0,60539.0,0.18196733]
[1719619481055,0.811313,60540.0,60539.0,0.18196733]
[1719619481258,0.1946,60540.0,60539.0,0.18196733]
[1719619481436,0.904313,60540.0,60539.0,0.18196733]
[1719619482263,0.904313,60540.0,60539.0,0.16526531]
[1719619482465,0.819313,60540.0,60539.0,0.16526531]
[1719619482838,0.85300953,60540.0,60539.0,0.16526531]
[1719619483637,0.85300953,60540.0,60539.0,0.18196733]
[1719619485276,0.77629253,60540.0,60539.0,0.18196733]
[1719619492105,0.77629253,60540.0,60539.0,0.18289133]
[1719619492561,0.77629253,60540.0,60539.0,0.27349133]
[1719619495582,0.57954053,60540.0,60539.0,0.27349133]
[1719619495791,0.40740353,60540.0,60539.0,0.36388931]
[1719619495970,0.37956253,60540.0,60539.0,0.36388931]
[1719619497764,0.22829653,60540.0,60539.0,0.36388931]
[1719619497967,0.38756253,60540.0,60539.0,0.36388931]
[1719619499410,0.22829653,60540.0,60539.0,0.39059133]
[1719619501075,0.22829653,60540.0,60539.0,0.38059133]
[1719619501848,0.22829653,60540.0,60539.0,0.18289133]
[1719619501849,0.34836553,60540.0,60539.0,0.18289133]
[1719619502245,0.25376553,60540.0,60539.0,0.18289133]
[1719619502458,0.34836553,60540.0,60539.0,0.16618931]
[1719619502661,0.34836553,60540.0,60539.0,0.38259133]
[1719619502865,0.01084,60550.0,60549.0,0.01670202]
[1719619503065,0.14663431,60550.0,60549.0,0.01670202]
[1719619503306,0.01084,60550.0,60545.0,0.0895]
[1719619503472,0.0946,60546.0,60545.0,0.268541]
[1719619503883,0.0946,60546.0,60545.0,0.01670202]
[1719619504335,0.944581,60547.0,60539.0,0.01762602]
[1719619504546,0.0946,60541.0,60539.0,0.000924]
[1719619504755,0.0946,60541.0,60540.0,0.01670202]
[1719619504958,0.0946,60541.0,60539.0,0.000924]
[1719619504959,0.742907,60540.0,60539.0,0.000924]
[1719619505167,0.842907,60540.0,60539.0,0.000924]
[1719619505371,0.842907,60540.0,60539.0,0.01762602]
[1719619506598,0.842907,60540.0,60539.0,0.01862602]
[1719619507267,0.842907,60540.0,60539.0,0.01962602]
[1719619507461,0.842907,60540.0,60539.0,0.01762602]
[1719619508856,1.785151,60540.0,60539.0,0.01762602]
[1719619509069,1.785151,60540.0,60539.0,0.01862602]
[1719619509278,0.908828,60540.0,60539.0,0.01862602]
[1719619510298,0.908828,60540.0,60539.0,0.01762602]
[1719619510507,0.908828,60540.0,60539.0,0.01862602]
[1719619514380,0.747149,60540.0,60539.0,0.001924]
[1719619514583,0.841749,60540.0,60539.0,0.001924]
[1719619514983,0.748267,60540.0,60539.0,0.001924]